[Event "FIDE World Rapid-ch Open 2018"]
[White "Cheparinov, Ivan"]
[Black "Oganian, Miran"]
[Site "St. Petersburg"]
[Round "1.32"]
[Annotator "ChessBase"]
[Result "1-0"]
[Date "2018.12.26"]
[WhiteElo "2709"]
[BlackElo "2423"]
[PlyCount "95"]
[TimeControl "900+10"]

1. Nf3 {[%emt 0:0:0]} Nf6 {[%emt 0:0:5]} 2. c4 {[%emt 0:0:0]} e6 {[%emt 0:0:2]
} 3. g3 {[%emt 0:0:0]} d5 {[%emt 0:0:1]} 4. d4 {[%emt 0:0:0]} Be7 {[%emt 0:0:9]} 5. Bg2 {[%emt 0:0:5]} 0-0 {[%emt 0:0:2]} 6. Nc3 {[%emt 0:0:3]
} dxc4 {[%emt 0:0:13]} 7. Ne5 {[%emt 0:0:1]} Nc6 {[%emt 0:0:0]} 8. Bxc6 {[%emt 0:0:3]} bxc6 {[%emt 0:0:3]} 9. Nxc6 {[%emt 0:0:1]} Qe8 {[%emt 0:0:14]} 10. Nxe7+ {[%emt 0:0:3]} Qxe7 {[%emt 0:0:1]} 11. Qa4 {[%emt 0:0:4]
} c5 {[%emt 0:4:21]} 12. dxc5 {[%emt 0:0:2]} Qxc5 {[%emt 0:0:0]} 13. Be3 {[%emt 0:0:2]} Qc7 {[%emt 0:1:0]} 14. Rd1 {[%emt 0:0:2]} Bb7 {[%emt 0:2:40]} 15. 0-0 {[%emt 0:0:19]} Nd5 {[%emt 0:1:5]} 16. Bd4 {[%emt 0:0:32]
} Rfd8 {[%emt 0:1:27]} 17. Nxd5 {[%emt 0:3:8]} Rxd5 {[%emt 0:0:0]} 18. Bc3 {[%emt 0:2:17]} Qc6 {[%emt 0:1:4]} 19. Qxc6 {[%emt 0:0:11]} Bxc6 {[%emt 0:0:1]} 20. Rxd5 {[%emt 0:1:52]} Bxd5 {[%emt 0:0:3]} 21. f3 {[%emt 0:0:6]
} f5 {[%emt 0:0:38]} 22. Rd1 {[%emt 0:0:19]} Kf7 {[%emt 0:0:0]} 23. Rd4 {[%emt 0:0:27]} Rc8 {[%emt 0:1:39]} 24. e4 {[%emt 0:0:4]} fxe4 {[%emt 0:0:13]} 25. fxe4 {[%emt 0:0:2]} Bc6 {[%emt 0:0:3]} 26. Rxc4 {[%emt 0:0:29]
} g5 {[%emt 0:1:3]} 27. Kf2 {[%emt 0:0:14]} Ke7 {[%emt 0:0:0]} 28. Ke3 {[%emt 0:0:10]} Kd7 {[%emt 0:0:31]} 29. Rc5 {[%emt 0:0:39]} h6 {[%emt 0:0:15]} 30. Ra5 {[%emt 0:0:21]} Ra8 {[%emt 0:0:11]} 31. Bg7 {[%emt 0:0:5]
} g4 {[%emt 0:0:5]} 32. Bxh6 {[%emt 0:0:9]} Kc7 {[%emt 0:0:0]} 33. Bg7 {[%emt 0:0:27]} Kb6 {[%emt 0:0:7]} 34. Rg5 {[%emt 0:0:4]} Rd8 {[%emt 0:0:8]} 35. Bd4+ {[%emt 0:0:8]} Ka6 {[%emt 0:0:5]} 36. Rxg4 {[%emt 0:0:4]
} e5 {[%emt 0:0:15]} 37. Bxe5 {[%emt 0:0:1]} Rd1 {[%emt 0:0:0]} 38. Bc3 {[%emt 0:0:9]} Bb5 {[%emt 0:0:19]} 39. h4 {[%emt 0:0:8]} Rd3+ {[%emt 0:0:7]} 40. Kf4 {[%emt 0:0:1]} Bc4 {[%emt 0:0:2]} 41. Rg6+ {[%emt 0:0:5]
} Kb5 {[%emt 0:0:7]} 42. a3 {[%emt 0:0:12]} Rd1 {[%emt 0:0:0]} 43. h5 {[%emt 0:0:2]} Bf7 {[%emt 0:0:16]} 44. Rg5+ {[%emt 0:0:2]} Kc4 {[%emt 0:0:1]} 45. g4 {[%emt 0:0:11]} Rf1+ {[%emt 0:0:18]} 46. Ke5 {[%emt 0:0:2]
} Be8 {[%emt 0:0:10]} 47. Rg8 {[%emt 0:0:15]} Bd7 {[%emt 0:0:0]} 48. g5 {[%emt 0:0:3] Kd5+} 1-0

[Event "FIDE World Rapid-ch Open 2018"]
[White "Petrov, Nikita"]
[Black "Motylev, Alexander"]
[Site "St. Petersburg"]
[Round "1.33"]
[Annotator "ChessBase"]
[Result "0-1"]
[Date "2018.12.26"]
[WhiteElo "2593"]
[BlackElo "2644"]
[PlyCount "96"]
[TimeControl "900+10"]

1. e4 e5 2. Bc4 Nf6 3. d3 c6 4. Nf3 d5 5. Bb3 a5 6. a4 Bb4+ 7. c3 Bd6 8. exd5 Nxd5 9. 0-0 0-0 10. Re1 Bg4 11. Nbd2 Nd7 12. Nc4 Qf6 13. Bg5 Qg6 14. h3 Bxf3 15. Qxf3 Bc7 16. Bd2 Kh8 17. Rad1 f5 18. Ne3 e4 19. dxe4 fxe4 20. Qg4 Qd6 21. Nf1 Nc5 22. Bxd5 cxd5 23. Be3 Nd3 24. Bd4 Rf7 25. Rxd3 exd3 26. Rd1 Bb6 27. Rxd3 Raf8 28. f3 Bxd4+ 29. Qxd4 Rf4 30. Qxd5 Qb6+ 31. Kh2 Qxb2 32. Ng3 Rxa4 33. Qf7 Rg8 34. Nf5 Ra2 35. Nh4 Qe2 36. Rd5 Qe8 37. Qf4 Qb8 38. Rd6 Ra4 39. Qxa4 Qxd6+ 40. f4 Rf8 41. g3 Qd2+ 42. Ng2 Qxc3 43. Qe4 Qc6 44. Qe5 a4 45. f5 a3 46. Nf4 Qc2+ 47. Kg1 Qb1+ 48. Kf2 Qb2+ 0-1

[Event "FIDE World Rapid-ch Open 2018"]
[White "Morozevich, Alexander"]
[Black "Gordievsky, Dmitry"]
[Site "St. Petersburg"]
[Round "1.34"]
[Annotator "ChessBase"]
[Result "1-0"]
[Date "2018.12.26"]
[WhiteElo "2656"]
[BlackElo "2614"]
[PlyCount "71"]
[TimeControl "900+10"]

1. e4 {[%emt 0:0:0]} c5 {[%emt 0:0:0]} 2. b3 {[%emt 0:0:1]} e6 {[%emt 0:0:0]} 3. Bb2 {[%emt 0:0:2]} Nc6 {[%emt 0:0:2]} 4. f4 {[%emt 0:0:47]} Nf6 {[%emt 0:1:44]} 5. e5 {[%emt 0:1:7]} Nd5 {[%emt 0:0:6]} 6. g3 {[%emt 0:0:0]} Be7 {[%emt 0:0:50]} 7. Nf3 {[%emt 0:0:2]} b6 {[%emt 0:1:6]} 8. Bg2 {[%emt 0:4:28]
} Bb7 {[%emt 0:0:2]} 9. 0-0 {[%emt 0:0:2]} 0-0 {[%emt 0:0:0]} 10. Na3 {[%emt 0:0:31]} d6 {[%emt 0:0:57]} 11. Nc4 {[%emt 0:0:21]} dxe5 {[%emt 0:0:16]} 12. Ncxe5 {[%emt 0:0:3]} Bf6 {[%emt 0:1:59]} 13. Qe2 {[%emt 0:0:28]
} Ndb4 {[%emt 0:2:20]} 14. c3 {[%emt 0:0:40]} Nd5 {[%emt 0:0:0]} 15. Ng4 {[%emt 0:1:3]} Be7 {[%emt 0:0:32]} 16. Ng5 {[%emt 0:2:18]} Bxg5 {[%emt 0:2:16]} 17. fxg5 {[%emt 0:0:2]} Qxg5 {[%emt 0:0:6]} 18. c4 {[%emt 0:0:31]
} Nde7 {[%emt 0:2:51]} 19. Nf6+ {[%emt 0:2:32]} Kh8 {[%emt 0:0:0]} 20. Ne4 {[%emt 0:1:2]} Qg6 {[%emt 0:0:9]} 21. Nd6 {[%emt 0:0:1]} Rab8 {[%emt 0:0:13]} 22. Rae1 {[%emt 0:0:13]} Ba8 {[%emt 0:0:9]} 23. Rf4 {[%emt 0:0:9]
} Nd4 {[%emt 0:0:4]} 24. Bxd4 {[%emt 0:0:17]} cxd4 {[%emt 0:0:0]} 25. Bxa8 {[%emt 0:0:3]} Rxa8 {[%emt 0:0:14]} 26. Qf3 {[%emt 0:0:4]
} Nf5 {[%emt 0:0:18]} 27. Nxf5 {[%emt 0:0:12]} exf5 {[%emt 0:0:1]} 28. Rxf5 {[%emt 0:0:1]} Rad8 {[%emt 0:0:18]} 29. Re7 {[%emt 0:0:6]} Kg8 {[%emt 0:0:0]} 30. Rxa7 {[%emt 0:0:13]} d3 {[%emt 0:0:1]} 31. Re7 {[%emt 0:0:8]} Rd6 {[%emt 0:0:6]} 32. Kg2 {[%emt 0:0:21]} h6 {[%emt 0:0:20]} 33. h4 {[%emt 0:0:9]
} h5 {[%emt 0:0:13]} 34. Qxh5 {[%emt 0:0:24]} Ra8 {[%emt 0:0:0]} 35. Qf3 {[%emt 0:0:9]} Rxa2 {[%emt 0:0:10]} 36. Re8+ {[%emt 0:0:1]} 1-0

[Event "FIDE World Rapid-ch Open 2018"]
[White "Vastrukhin, Oleg"]
[Black "Matlakov, Maxim"]
[Site "St. Petersburg"]
[Round "1.35"]
[Annotator "ChessBase"]
[Result "0-1"]
[Date "2018.12.26"]
[WhiteElo "2413"]
[BlackElo "2700"]
[PlyCount "54"]
[TimeControl "900+10"]

1. Nf3 {[%emt 0:0:0]} d5 {[%emt 0:0:0]} 2. g3 {[%emt 0:0:0]} g6 {[%emt 0:0:0]} 3. Bg2 {[%emt 0:0:0]} Bg7 {[%emt 0:0:0]} 4. d4 {[%emt 0:0:0]} Nf6 {[%emt 0:0:0]} 5. 0-0 {[%emt 0:0:2]} 0-0 {[%emt 0:0:0]} 6. Nbd2 {[%emt 0:0:0]} a5 {[%emt 0:0:0]} 7. c3 {[%emt 0:1:1]} c5 {[%emt 0:0:22]} 8. Ne5 {[%emt 0:1:8]
} Nc6 {[%emt 0:1:17]} 9. Nxc6 {[%emt 0:2:18]} bxc6 {[%emt 0:0:0]} 10. dxc5 {[%emt 0:0:2]} Nd7 {[%emt 0:2:6]} 11. Nb3 {[%emt 0:0:5]} a4 {[%emt 0:0:5]} 12. Nd4 {[%emt 0:0:2]} Bb7 {[%emt 0:0:0]} 13. Be3 {[%emt 0:0:27]
} e5 {[%emt 0:0:8]} 14. Nc2 {[%emt 0:0:1]} Qe7 {[%emt 0:0:0]} 15. Qd2 {[%emt 0:3:31]} Nxc5 {[%emt 0:0:9]} 16. Bh6 {[%emt 0:0:3]} Bxh6 {[%emt 0:1:5]} 17. Qxh6 {[%emt 0:0:1]} Ne6 {[%emt 0:0:3]} 18. Nb4 {[%emt 0:0:21]
} e4 {[%emt 0:0:44]} 19. Rfd1 {[%emt 0:0:53]} Rfd8 {[%emt 0:0:0]} 20. Rac1 {[%emt 0:2:44]} c5 {[%emt 0:1:27]} 21. Nc2 {[%emt 0:0:2]} d4 {[%emt 0:0:1]} 22. cxd4 {[%emt 0:0:21]} cxd4 {[%emt 0:0:2]} 23. a3 {[%emt 0:0:0]
} d3 {[%emt 0:0:39]} 24. exd3 {[%emt 0:0:13]} exd3 {[%emt 0:0:0]} 25. Ne1 {[%emt 0:3:3]} Nd4 {[%emt 0:0:22]} 26. Rc4 {[%emt 0:1:34]} d2 {[%emt 0:1:23]} 27. Qxd2 {[%emt 0:0:59]} Ne2+ {[%emt 0:0:5]} 0-1

[Event "FIDE World Rapid-ch Open 2018"]
[White "Amonatov, Farrukh"]
[Black "Vlassov, Nikolai"]
[Site "St. Petersburg"]
[Round "1.36"]
[Annotator "ChessBase"]
[Result "1-0"]
[Date "2018.12.26"]
[WhiteElo "2614"]
[BlackElo "2401"]
[PlyCount "55"]
[TimeControl "900+10"]

1. e4 {[%emt 0:0:0]} c5 {[%emt 0:0:0]} 2. Nc3 {[%emt 0:0:0]} d6 {[%emt 0:0:0]} 3. Nf3 {[%emt 0:0:1]} Nf6 {[%emt 0:0:12]} 4. d4 {[%emt 0:0:1]} cxd4 5. Nxd4 {[%emt 0:0:2]} g6 {[%emt 0:0:2]} 6. Be3 {[%emt 0:0:2]} Bg7 {[%emt 0:0:1]
} 7. f3 {[%emt 0:0:1]} a6 {[%emt 0:0:1]} 8. Bc4 {[%emt 0:0:0]} Nbd7 {[%emt 0:0:8]} 9. Qd2 {[%emt 0:0:3]} h5 {[%emt 0:0:3]} 10. 0-0-0 {[%emt 0:0:3]} Qc7 {[%emt 0:0:11]} 11. Bb3 {[%emt 0:0:3]} Ne5 {[%emt 0:0:4]
} 12. Kb1 {[%emt 0:0:4]} b5 {[%emt 0:0:18]} 13. Bg5 {[%emt 0:0:0]} Bb7 {[%emt 0:0:59]} 14. Rhe1 {[%emt 0:0:13]} Rc8 {[%emt 0:0:22]} 15. Nd5 {[%emt 0:2:15]} Bxd5 {[%emt 0:0:7]} 16. exd5 {[%emt 0:0:2]} 0-0 {[%emt 0:0:8]
} 17. Bh6 {[%emt 0:1:24]} Rfe8 {[%emt 0:1:6]} 18. Bxg7 {[%emt 0:0:43]
} Kxg7 {[%emt 0:0:1]} 19. Qg5 {[%emt 0:0:6]} Kh7 {[%emt 0:0:0]} 20. f4 {[%emt 0:0:43]} Nc4 {[%emt 0:0:53]} 21. f5 {[%emt 0:0:2]} Rg8 {[%emt 0:1:7]
} 22. Nc6 {[%emt 0:1:12]} Nxd5 {[%emt 0:2:5]} 23. Bxc4 {[%emt 0:2:51]
} bxc4 {[%emt 0:5:47]} 24. Nxe7 {[%emt 0:0:21]} Nc3+ {[%emt 0:0:0]} 25. bxc3 {[%emt 0:0:11]} Rb8+ {[%emt 0:0:6]} 26. Kc1 {[%emt 0:0:26]
} Qa5 {[%emt 0:0:1]} 27. fxg6+ {[%emt 0:0:6]} Rxg6 {[%emt 0:0:2]} 28. Qxa5 {[%emt 0:0:5]} 1-0

[Event "FIDE World Rapid-ch Open 2018"]
[White "Drygalov, Andrey"]
[Black "Bocharov, Dmitry"]
[Site "St. Petersburg"]
[Round "1.37"]
[Annotator "ChessBase"]
[Result "0-1"]
[Date "2018.12.26"]
[WhiteElo "2481"]
[BlackElo "2533"]
[PlyCount "114"]
[TimeControl "900+10"]

1. e4 {[%emt 0:0:0]} c5 {[%emt 0:0:0]} 2. Nf3 {[%emt 0:0:0]} d6 {[%emt 0:0:0]} 3. d4 {[%emt 0:0:0]} cxd4 4. Nxd4 {[%emt 0:0:0]} Nf6 {[%emt 0:0:0]} 5. Nc3 {[%emt 0:0:0]} a6 {[%emt 0:0:8]} 6. Be3 {[%emt 0:0:0]} e5 {[%emt 0:0:17]
} 7. Nb3 {[%emt 0:0:1]} Be7 {[%emt 0:0:8]} 8. f3 {[%emt 0:0:0]} Be6 {[%emt 0:0:17]} 9. Qd2 {[%emt 0:0:1]} h5 {[%emt 0:0:47]} 10. Nd5 {[%emt 0:0:10]
} Nxd5 {[%emt 0:1:13]} 11. exd5 {[%emt 0:0:5]} Bf5 {[%emt 0:0:0]} 12. Be2 {[%emt 0:0:16]} Qc7 {[%emt 0:0:31]} 13. c4 {[%emt 0:0:9]} 0-0 {[%emt 0:0:30]} 14. 0-0 {[%emt 0:0:6]} Bg6 {[%emt 0:0:55]} 15. Rac1 {[%emt 0:0:2]
} b6 {[%emt 0:0:39]} 16. Kh1 {[%emt 0:0:11]} Nd7 {[%emt 0:0:0]} 17. Rfe1 {[%emt 0:0:32]} h4 {[%emt 0:1:4]} 18. Bf1 {[%emt 0:0:41]} a5 {[%emt 0:0:29]} 19. Na1 {[%emt 0:0:2]} Nc5 {[%emt 0:0:40]} 20. Nc2 {[%emt 0:0:3]
} Rae8 {[%emt 0:1:2]} 21. b3 {[%emt 0:0:14]} f5 {[%emt 0:0:0]} 22. h3 {[%emt 0:4:24]} Bf6 {[%emt 0:1:25]} 23. Rcd1 {[%emt 0:2:23]} Qd7 {[%emt 0:1:50]} 24. Na3 {[%emt 0:0:17]} f4 {[%emt 0:0:39]} 25. Bxc5 {[%emt 0:0:1]
} bxc5 {[%emt 0:0:1]} 26. Bd3 {[%emt 0:0:1]} e4 {[%emt 0:0:0]} 27. Bxe4 {[%emt 0:1:14]} Bxe4 {[%emt 0:0:3]} 28. Rxe4 {[%emt 0:0:43]} Rxe4 {[%emt 0:0:2]} 29. fxe4 {[%emt 0:0:1]} f3 {[%emt 0:0:29]} 30. Rf1 {[%emt 0:0:44]
} Be5 {[%emt 0:0:15]} 31. Nc2 {[%emt 0:1:34]} fxg2+ {[%emt 0:0:0]} 32. Qxg2 {[%emt 0:0:7]} Rxf1+ {[%emt 0:0:6]} 33. Qxf1 {[%emt 0:0:0]} a4 {[%emt 0:0:45]} 34. Qf3 {[%emt 0:2:5]} axb3 {[%emt 0:0:5]} 35. axb3 {[%emt 0:0:19]} Qa7 {[%emt 0:0:3]} 36. Qd3 {[%emt 0:2:59]} Qa2 {[%emt 0:0:15]
} 37. Kg2 {[%emt 0:0:2]} Qb2 {[%emt 0:0:4]} 38. Kf2 {[%emt 0:0:0]} Qc1 {[%emt 0:0:4]} 39. Ke2 {[%emt 0:0:12]} Bg3 {[%emt 0:1:14]} 40. e5 {[%emt 0:0:10]} Bxe5 {[%emt 0:0:16]} 41. Qf5 {[%emt 0:0:9]} Qg1 {[%emt 0:0:30]
} 42. Qe6+ {[%emt 0:0:30]} Kh7 {[%emt 0:0:9]} 43. Qf5+ {[%emt 0:0:3]
} g6 {[%emt 0:0:19]} 44. Qf7+ {[%emt 0:0:2]} Bg7 {[%emt 0:0:0]} 45. Qf3 {[%emt 0:0:23]} Qb1 {[%emt 0:0:17]} 46. Ne1 {[%emt 0:0:17]} Kg8 {[%emt 0:0:7]} 47. Qe3 {[%emt 0:0:13]} Qb2+ {[%emt 0:0:29]} 48. Kf1 {[%emt 0:0:6]
} Qh2 {[%emt 0:0:10]} 49. Qf3 {[%emt 0:0:17]} Bd4 {[%emt 0:0:0]} 50. Qg2 {[%emt 0:0:3]} Qf4+ {[%emt 0:0:3]} 51. Qf3 {[%emt 0:0:2]} Qc1 {[%emt 0:0:8]} 52. Qg4 {[%emt 0:0:8]} Kg7 {[%emt 0:0:5]} 53. Qxh4 {[%emt 0:0:5]
} Qe3 {[%emt 0:0:1]} 54. Nc2 {[%emt 0:0:35]} Qd3+ {[%emt 0:0:0]} 55. Ke1 {[%emt 0:0:1]} Bc3+ {[%emt 0:0:3]} 56. Kf2 {[%emt 0:0:2]} Qxc2+ {[%emt 0:0:2]} 57. Kf3 {[%emt 0:0:5]} Qd3+ {[%emt 0:0:4]} 0-1

[Event "FIDE World Rapid-ch Open 2018"]
[White "Vishnu Prasanna. V"]
[Black "Salem, A.R. Saleh"]
[Site "St. Petersburg"]
[Round "1.39"]
[Annotator "ChessBase"]
[Result "1/2-1/2"]
[Date "2018.12.26"]
[WhiteElo "2518"]
[BlackElo "2660"]
[PlyCount "55"]
[TimeControl "900+10"]

1. Nf3 {[%emt 0:0:0]} c5 {[%emt 0:0:0]} 2. c4 {[%emt 0:0:0]} Nf6 {[%emt 0:0:0]
} 3. g3 {[%emt 0:0:9]} d5 {[%emt 0:0:5]} 4. cxd5 Nxd5 {[%emt 0:0:2]
} 5. Bg2 {[%emt 0:0:11]} Nc6 {[%emt 0:0:2]} 6. d4 {[%emt 0:0:0]} cxd4 {[%emt 0:0:6]} 7. Nxd4 {[%emt 0:0:2]} Ndb4 {[%emt 0:0:7]} 8. Nxc6 {[%emt 0:0:4]} Qxd1+ {[%emt 0:0:4]} 9. Kxd1 {[%emt 0:0:3]} Nxc6 {[%emt 0:0:1]
} 10. Nc3 {[%emt 0:0:30]} Bd7 {[%emt 0:1:4]} 11. Be3 {[%emt 0:0:0]} Rc8 {[%emt 0:0:44]} 12. Rc1 {[%emt 0:0:54]} g6 {[%emt 0:1:25]} 13. Ke1 {[%emt 0:2:9]} Bg7 {[%emt 0:0:49]} 14. f4 {[%emt 0:0:16]} b6 {[%emt 0:0:0]} 15. Kf2 {[%emt 0:0:32]} Na5 {[%emt 0:0:2]} 16. Nd5 {[%emt 0:4:37]} Nc4 {[%emt 0:0:6]} 17. b3 {[%emt 0:0:53]} Nxe3 {[%emt 0:0:11]} 18. Kxe3 {[%emt 0:0:8]
} Rxc1 {[%emt 0:3:21]} 19. Rxc1 {[%emt 0:0:3]} e6 {[%emt 0:0:0]} 20. Nb4 {[%emt 0:0:35]} Bf8 {[%emt 0:0:44]} 21. Nd3 {[%emt 0:0:14]} Bd6 {[%emt 0:0:2]} 22. Bc6 {[%emt 0:0:27]} Bxc6 {[%emt 0:0:10]} 23. Rxc6 {[%emt 0:0:3]
} Kd7 {[%emt 0:0:2]} 24. Rc4 {[%emt 0:0:25]} h6 {[%emt 0:0:0]} 25. a4 {[%emt 0:0:50]} g5 {[%emt 0:0:33]} 26. Kf3 {[%emt 0:0:27]} gxf4 {[%emt 0:0:7]} 27. gxf4 {[%emt 0:0:2]} Rg8 {[%emt 0:0:3]} 28. Rc1 {[%emt 0:0:28]
} 1/2-1/2

[Event "FIDE World Rapid-ch Open 2018"]
[White "Zubov, Alexander"]
[Black "Makarov, Marat"]
[Site "St. Petersburg"]
[Round "1.40"]
[Annotator "ChessBase"]
[Result "1-0"]
[Date "2018.12.26"]
[WhiteElo "2597"]
[BlackElo "2505"]
[PlyCount "97"]
[TimeControl "900+10"]

1. d4 {[%emt 0:0:0]} Nf6 {[%emt 0:0:36]} 2. c4 {[%emt 0:0:4]} d6 {[%emt 0:0:0]} 3. Nc3 {[%emt 0:0:45]} c6 {[%emt 0:1:5]} 4. e4 {[%emt 0:0:35]} e5 {[%emt 0:0:12]
} 5. Nf3 {[%emt 0:0:12]} Nbd7 {[%emt 0:0:2]} 6. Be2 {[%emt 0:0:0]} Be7 {[%emt 0:0:3]} 7. 0-0 {[%emt 0:0:3]} 0-0 {[%emt 0:0:4]} 8. Be3 {[%emt 0:1:6]} Re8 {[%emt 0:0:26]} 9. d5 {[%emt 0:0:22]} Nf8 {[%emt 0:0:0]} 10. Ne1 {[%emt 0:2:55]} Ng6 {[%emt 0:0:11]} 11. Nd3 {[%emt 0:0:7]} h6 {[%emt 0:0:5]} 12. Re1 {[%emt 0:1:41]} Bd7 {[%emt 0:2:31]} 13. Rc1 {[%emt 0:0:53]
} c5 {[%emt 0:1:48]} 14. a3 {[%emt 0:0:6]} Nh7 {[%emt 0:0:28]
} 15. Bg4 {[%emt 0:0:8]} Bg5 {[%emt 0:0:8]} 16. g3 {[%emt 0:0:18]} Bxe3 {[%emt 0:0:29]
} 17. Rxe3 {[%emt 0:0:2]} Rf8 {[%emt 0:3:18]} 18. b4 {[%emt 0:0:0]} b6 {[%emt 0:0:12]} 19. Bf5 {[%emt 0:2:8]} Bxf5 {[%emt 0:1:51]} 20. exf5 {[%emt 0:0:1]} Ne7 {[%emt 0:0:1]} 21. g4 {[%emt 0:0:56]} g6 {[%emt 0:0:0]} 22. f4 {[%emt 0:2:44]} f6 {[%emt 0:2:46]} 23. fxg6 {[%emt 0:0:16]} Nxg6 {[%emt 0:0:1]} 24. f5 {[%emt 0:0:2]} Ne7 {[%emt 0:0:8]} 25. Nf2 {[%emt 0:0:29]
} cxb4 {[%emt 0:1:0]} 26. axb4 {[%emt 0:0:2]} a5 {[%emt 0:0:0]} 27. bxa5 {[%emt 0:0:25]} bxa5 {[%emt 0:0:2]} 28. Nce4 {[%emt 0:0:9]} a4 {[%emt 0:0:6]} 29. Ra3 {[%emt 0:0:7]} Ng5 {[%emt 0:0:13]} 30. Nxg5 {[%emt 0:1:1]
} hxg5 {[%emt 0:0:1]} 31. Rxa4 {[%emt 0:0:8]} Rxa4 {[%emt 0:0:0]} 32. Qxa4 {[%emt 0:0:2]} Qb6 {[%emt 0:0:11]} 33. Qd7 {[%emt 0:0:11]} Nc8 {[%emt 0:0:8]} 34. Kg2 {[%emt 0:0:14]} Qb2 {[%emt 0:0:7]} 35. Re1 {[%emt 0:0:3]
} Nb6 {[%emt 0:0:28]} 36. Qe6+ {[%emt 0:0:13]} Kg7 {[%emt 0:0:0]} 37. Qxd6 {[%emt 0:0:2]} Rf7 {[%emt 0:0:25]} 38. Qc6 {[%emt 0:0:11]} Ra7 {[%emt 0:0:7]} 39. Qb5 {[%emt 0:0:56]} Qxb5 {[%emt 0:0:11]} 40. cxb5 {[%emt 0:0:1]
} Nxd5 {[%emt 0:0:8]} 41. Rb1 {[%emt 0:0:3]} Rb7 {[%emt 0:0:0]} 42. Ne4 {[%emt 0:0:4]} Rb6 {[%emt 0:0:7]} 43. Kf2 {[%emt 0:0:14]} Kf7 {[%emt 0:0:4]} 44. Ke2 {[%emt 0:0:3]} Nc7 {[%emt 0:0:6]} 45. Nc3 {[%emt 0:0:2]
} Ke7 {[%emt 0:0:38]} 46. Kd3 {[%emt 0:0:2]} Rd6+ {[%emt 0:0:0]} 47. Kc2 {[%emt 0:0:6]} Na8 {[%emt 0:0:3]} 48. b6 {[%emt 0:0:3]} Rd8 {[%emt 0:0:28]} 49. b7 1-0

[Event "FIDE World Rapid-ch Open 2018"]
[White "Dzhumagaliev, Yan"]
[Black "Fridman, Daniel"]
[Site "St. Petersburg"]
[Round "1.41"]
[Annotator "ChessBase"]
[Result "0-1"]
[Date "2018.12.26"]
[WhiteElo "2410"]
[BlackElo "2633"]
[PlyCount "78"]
[TimeControl "900+10"]

1. d4 {[%emt 0:0:0]} d5 {[%emt 0:0:0]} 2. c4 {[%emt 0:0:0]} e6 {[%emt 0:0:0]} 3. Nf3 {[%emt 0:0:0]} Nf6 {[%emt 0:0:0]} 4. g3 {[%emt 0:0:0]} Bb4+ {[%emt 0:0:2]} 5. Bd2 {[%emt 0:0:2]} a5 {[%emt 0:0:1]} 6. Bg2 {[%emt 0:0:20]
} 0-0 {[%emt 0:0:3]} 7. 0-0 {[%emt 0:0:36]} c6 {[%emt 0:0:3]
} 8. Qc2 {[%emt 0:0:24]} Nbd7 {[%emt 0:0:2]} 9. Bf4 {[%emt 0:0:13]} Be7 {[%emt 0:0:2]
} 10. Rc1 {[%emt 0:1:53]} Ne4 {[%emt 0:0:33]} 11. Nfd2 {[%emt 0:0:12]
} f5 {[%emt 0:1:2]} 12. Nxe4 {[%emt 0:0:23]} fxe4 {[%emt 0:0:0]} 13. Qd2 {[%emt 0:0:9]} Bb4 {[%emt 0:2:47]} 14. Nc3 {[%emt 0:0:7]} Nb6 {[%emt 0:0:5]} 15. b3 {[%emt 0:2:38]} Be7 {[%emt 0:0:2]} 16. Na4 {[%emt 0:0:0]} Nd7 {[%emt 0:0:18]} 17. f3 {[%emt 0:0:47]} exf3 {[%emt 0:0:2]} 18. exf3 {[%emt 0:0:1]} Bf6 {[%emt 0:0:20]} 19. Rab1 {[%emt 0:1:16]} e5 {[%emt 0:2:24]
} 20. dxe5 {[%emt 0:0:2]} Nxe5 {[%emt 0:0:4]} 21. Re1 {[%emt 0:0:18]
} Bf5 {[%emt 0:0:15]} 22. Bxe5 {[%emt 0:0:22]} Bxe5 {[%emt 0:0:0]} 23. Rbd1 {[%emt 0:0:2]} Bd6 {[%emt 0:0:52]} 24. Qd4 {[%emt 0:1:22]} Bb4 {[%emt 0:0:48]} 25. Re2 {[%emt 0:0:49]} Qd6 {[%emt 0:1:52]} 26. Kh1 {[%emt 0:2:4]
} Rae8 {[%emt 0:0:22]} 27. Rxe8 {[%emt 0:0:13]} Rxe8 {[%emt 0:0:0]} 28. cxd5 {[%emt 0:0:6]} Qxd5 {[%emt 0:0:29]} 29. Qxd5+ {[%emt 0:0:0]} cxd5 {[%emt 0:0:2]} 30. f4 {[%emt 0:1:4]} d4 {[%emt 0:1:3]} 31. Bf3 {[%emt 0:1:34]} b5 {[%emt 0:1:38]} 32. Nb6 {[%emt 0:1:15]} Bh3 {[%emt 0:0:0]} 33. Nd5 {[%emt 0:0:22]} Bc5 {[%emt 0:0:2]} 34. b4 {[%emt 0:1:16]} axb4 {[%emt 0:0:18]} 35. Nc7 {[%emt 0:0:1]} Re3 {[%emt 0:1:49]} 36. Bd5+ {[%emt 0:0:1]
} Kf8 {[%emt 0:0:11]} 37. Na6 {[%emt 0:0:0]} d3 {[%emt 0:0:0]} 38. Nxc5 {[%emt 0:0:48]} d2 {[%emt 0:0:2]} 39. Kg1 {[%emt 0:0:23]} Re1+ {[%emt 0:0:2]} 0-1

[Event "FIDE World Rapid-ch Open 2018"]
[White "Riazantsev, Alexander"]
[Black "Rashkovsky, Nukhim N"]
[Site "St. Petersburg"]
[Round "1.42"]
[Annotator "ChessBase"]
[Result "1-0"]
[Date "2018.12.26"]
[WhiteElo "2649"]
[BlackElo "2482"]
[PlyCount "89"]
[TimeControl "900+10"]

1. d4 {[%emt 0:0:0]} Nf6 {[%emt 0:0:0]} 2. c4 {[%emt 0:0:0]} e6 {[%emt 0:0:0]} 3. Nf3 {[%emt 0:0:0]} Bb4+ {[%emt 0:0:0]} 4. Bd2 {[%emt 0:0:0]} Qe7 {[%emt 0:0:5]} 5. g3 {[%emt 0:0:0]} Bxd2+ {[%emt 0:0:31]} 6. Qxd2 {[%emt 0:0:7]
} Nc6 {[%emt 0:0:15]} 7. Nc3 {[%emt 0:0:21]} d5 {[%emt 0:0:1]
} 8. Bg2 {[%emt 0:1:21]} dxc4 {[%emt 0:0:1]} 9. Ne5 {[%emt 0:2:11]} Nxe5 {[%emt 0:0:18]
} 10. dxe5 {[%emt 0:0:1]} Nd7 {[%emt 0:0:1]} 11. f4 {[%emt 0:0:0]} Nb6 {[%emt 0:1:39]} 12. 0-0 {[%emt 0:2:8]} 0-0 {[%emt 0:0:5]} 13. Rfd1 {[%emt 0:0:29]} Bd7 {[%emt 0:1:24]} 14. Bxb7 {[%emt 0:0:22]} Rab8 {[%emt 0:0:4]
} 15. Bf3 {[%emt 0:0:11]} Ba4 {[%emt 0:2:41]} 16. Nxa4 {[%emt 0:2:35]
} Nxa4 {[%emt 0:0:1]} 17. Qa5 {[%emt 0:0:21]} Nxb2 {[%emt 0:0:0]} 18. Rdc1 {[%emt 0:0:10]} Rb6 {[%emt 0:0:49]} 19. Kg2 {[%emt 0:0:45]} g6 {[%emt 0:0:16]} 20. Qxa7 {[%emt 0:1:3]} Rfb8 {[%emt 0:2:29]} 21. a4 {[%emt 0:0:18]
} Qd8 {[%emt 0:3:1]} 22. a5 {[%emt 0:0:15]} Rb3 {[%emt 0:0:0]} 23. Qf2 {[%emt 0:1:43]} c6 {[%emt 0:0:54]} 24. a6 {[%emt 0:0:27]} Qc7 {[%emt 0:0:21]
} 25. a7 {[%emt 0:0:35]} Ra8 {[%emt 0:0:0]} 26. Ra6 {[%emt 0:0:0]} Rb7 {[%emt 0:0:25]} 27. Rxc6 {[%emt 0:0:26]} Qd7 {[%emt 0:0:10]} 28. Rd6 {[%emt 0:0:6]} Qb5 {[%emt 0:0:1]} 29. Bxb7 {[%emt 0:1:10]} Qxb7+ {[%emt 0:0:1]
} 30. Kh3 {[%emt 0:0:1]} Qxa7 {[%emt 0:0:41]} 31. Qxa7 {[%emt 0:0:9]
} Rxa7 {[%emt 0:0:1]} 32. Rc2 {[%emt 0:0:7]} Rb7 {[%emt 0:0:0]} 33. Rdd2 {[%emt 0:0:12]} Na4 {[%emt 0:0:42]} 34. Rxc4 {[%emt 0:0:6]} Nb6 {[%emt 0:0:5]} 35. Rb4 {[%emt 0:0:23]} Rd7 {[%emt 0:0:1]} 36. Rxd7 {[%emt 0:0:13]
} Nxd7 {[%emt 0:0:0]} 37. Rb5 {[%emt 0:0:6]} h6 {[%emt 0:0:0]} 38. Kg2 {[%emt 0:0:2]} g5 {[%emt 0:0:7]} 39. Kf3 {[%emt 0:0:4]} Kg7 {[%emt 0:0:15]} 40. Ke4 {[%emt 0:0:12]} Nf8 {[%emt 0:0:11]} 41. Rb7 {[%emt 0:0:13]
} Ng6 {[%emt 0:0:12]} 42. f5 {[%emt 0:0:19]} exf5+ {[%emt 0:0:0]} 43. Kxf5 {[%emt 0:0:1]} Nf8 {[%emt 0:0:2]} 44. Re7 {[%emt 0:0:1]} Kg8 {[%emt 0:0:6]} 45. Ke4 1-0